bitfinex/quotes_SOLUSD_20241121
["timestamp","ask_amount","ask_price","bid_price","bid_amount"]
[1732194519024,23.20991956,244.04,244.0,14.0982]
[1732194519316,23.20991956,244.04,244.0,10.0]
[1732194519515,23.20991956,244.02,244.0,10.0]
[1732194520595,14.50122926,244.01,244.0,10.0]
[1732194521327,38.27811326,244.01,244.0,10.0]
[1732194522451,14.50122926,244.01,244.0,10.0]
[1732194522652,23.20652795,244.01,244.0,10.0]
[1732194524339,46.98341195,244.01,244.0,10.0]
[1732194525140,66.98341195,244.01,244.0,10.0]
[1732194525342,66.98341195,244.01,243.9,31.1186]
[1732194525343,48.34631012,244.0,243.9,31.1186]
[1732194525650,23.20652795,243.91,243.9,31.1186]
[1732194526847,23.20652795,243.91,243.83,22.7421]
[1732194526848,23.20652795,243.91,243.84,31.1186]
[1732194527156,23.20652795,243.89,243.84,31.1186]
[1732194527361,4.0992,243.95,243.84,31.1186]
[1732194527362,23.20652795,243.87,243.84,31.1186]
[1732194529360,23.20652795,243.89,243.84,41.3712]
[1732194530067,23.20652795,243.89,243.84,31.1186]
[1732194531041,23.20652795,243.87,243.84,31.1186]
[1732194531456,23.20652795,243.85,243.84,31.1186]
[1732194532179,23.20652795,243.87,243.84,31.1186]
[1732194532356,1.07112612,243.97,243.84,31.1186]
[1732194532357,23.20652795,243.91,243.84,54.32512795]
[1732194532663,23.20652795,243.93,243.85,14.353]
[1732194533448,23.20652795,243.91,243.85,14.353]
[1732194534149,23.20652795,243.89,243.85,14.353]
[1732194534355,23.20652795,243.89,243.85,10.2522]
[1732194534670,23.20652795,243.94,243.85,37.55952795]
[1732194535366,4.0983,244.0,243.87,23.20652795]
[1732194535575,0.47112612,244.07,243.88,14.3512]
[1732194535576,23.20652795,243.96,243.88,14.3512]
[1732194536467,0.1,244.06,243.88,14.3512]
[1732194536468,23.20652795,244.0,243.91,23.20652795]
[1732194536979,23.20652795,244.02,243.91,23.20652795]
[1732194537158,23.20652795,244.04,243.95,23.20652795]
[1732194537857,23.20652795,244.06,243.97,43.20652795]
[1732194538170,23.20652795,244.08,243.99,23.20652795]
[1732194539155,23.20652795,244.08,244.0,14.3442]
[1732194539561,23.20652795,244.08,244.01,42.8663]
[1732194539871,33.44422795,244.2,244.01,66.07282795]
[1732194539872,23.20652795,244.12,244.01,66.07282795]
[1732194540054,23.20652795,244.12,244.03,23.20652795]
[1732194540947,23.20652795,244.12,244.01,42.8663]
[1732194540948,23.20652795,244.14,244.05,23.20652795]
[1732194541143,23.20652795,244.14,244.07,20.0]
[1732194541354,23.20652795,244.16,244.07,20.0]
[1732194541564,23.20652795,244.14,244.07,20.0]
[1732194541789,23.20652795,244.12,244.07,20.0]
[1732194542082,23.20652795,244.14,244.07,20.0]
[1732194542272,23.20652795,244.14,244.08,14.3395]
[1732194542438,23.20652795,244.16,244.08,14.3395]
[1732194542853,23.20652795,244.18,244.08,14.3395]
[1732194543073,23.20652795,244.2,244.1,29.3488]
[1732194543270,23.20652795,244.2,244.11,12.1925]
[1732194543466,6.38860235,244.21,244.13,23.20652795]
[1732194543763,6.38860235,244.21,244.15,23.20652795]
[1732194543971,6.38860235,244.21,244.14,20.0]
[1732194543972,6.38860235,244.21,244.17,23.20652795]
[1732194544163,6.38860235,244.21,244.18,20.0]
[1732194544350,6.38860235,244.21,244.19,54.66462795]
[1732194544673,6.38860235,244.21,244.19,31.4581]
[1732194544867,62.02875453,244.27,244.22,0.5]
[1732194545054,62.02875453,244.27,244.25,23.20652795]
[1732194545381,30.35445453,244.27,244.26,43.776884]
[1732194545827,30.35445453,244.27,244.26,20.0]
[1732194545957,30.35445453,244.27,244.25,23.20652795]
[1732194546357,30.35445453,244.27,244.26,4.0939]
[1732194547954,30.35445453,244.27,244.24,10.2354]
[1732194548389,30.35445453,244.27,244.24,33.44192795]
[1732194549584,30.35445453,244.27,244.24,10.2354]
[1732194550375,30.35445453,244.27,244.24,33.44192795]
[1732194550570,51.10881882,244.33,244.26,23.20652795]
[1732194550767,51.10881882,244.33,244.27,20.0]
[1732194551350,51.10881882,244.33,244.24,10.2354]
[1732194551662,16.90118728,244.37,244.25,20.0]
[1732194551992,4.114,244.41,244.32,23.20652795]
[1732194551993,27.32052795,244.41,244.32,23.20652795]
[1732194552156,23.20652795,244.41,244.32,23.20652795]
[1732194552557,23.20652795,244.43,244.34,23.20652795]
[1732194554270,23.20652795,244.41,244.34,10.2313]
[1732194554443,23.20652795,244.41,244.34,14.3239]
[1732194554764,23.20652795,244.41,244.34,10.2313]
[1732194554967,23.30652795,244.43,244.34,37.53042795]
[1732194555145,23.20652795,244.43,244.34,37.53042795]
[1732194555341,23.30652795,244.43,244.34,37.53042795]
[1732194555672,23.20652795,244.43,244.34,37.53042795]
[1732194555954,23.30652795,244.43,244.34,37.53042795]
[1732194556251,23.20652795,244.41,244.34,10.2313]
[1732194556944,23.20652795,244.41,244.34,14.3239]
[1732194557259,23.30652795,244.43,244.34,37.53042795]
[1732194557446,23.30652795,244.45,244.36,23.20652795]
[1732194557747,23.67765407,244.56,244.34,14.3239]
[1732194557748,0.1,244.44,244.43,55.42972795]
[1732194558045,4.0886,244.58,244.45,14.3178]
[1732194558244,27.29512795,244.59,244.49,23.20652795]
[1732194558627,23.20652795,244.59,244.49,23.20652795]
[1732194559240,23.20652795,244.57,244.47,23.20652795]
[1732194560062,23.20652795,244.57,244.49,23.20652795]
[1732194560850,30.2619,244.66,244.51,23.20652795]
[1732194560851,4.0873,244.66,244.51,23.20652795]
[1732194561023,23.20652795,244.61,244.51,23.20652795]
[1732194561526,23.20652795,244.59,244.49,23.20652795]
[1732194561737,23.20652795,244.59,244.5,20.0]
[1732194561936,23.20652795,244.59,244.5,34.3147]
[1732194562146,23.20652795,244.59,244.51,23.20652795]
[1732194562445,27.29502795,244.59,244.5,30.2249]
[1732194562751,23.20652795,244.57,244.5,30.2249]
[1732194563133,27.29502795,244.59,244.5,34.3148]
[1732194563541,23.20652795,244.57,244.48,4.0902]
[1732194563739,23.20652795,244.57,244.48,20.0]
[1732194563947,23.20652795,244.57,244.49,24.0901]
[1732194564330,4.0889,244.57,244.49,27.29662795]
[1732194564657,23.20652795,244.61,244.51,23.20652795]
[1732194565143,20.0,244.65,244.54,23.20652795]
[1732194565354,23.20652795,244.63,244.54,23.20652795]
[1732194565734,4.0873,244.66,244.55,11.6487]
[1732194565931,27.29422795,244.64,244.55,15.7378]
[1732194566152,23.20652795,244.62,244.55,11.6487]
[1732194566551,0.47112612,244.47,244.24,23.20652795]
[1732194566730,0.47112612,244.47,244.22,11.6487]
[1732194566731,23.20652795,244.32,244.22,11.6487]
[1732194567145,23.20652795,244.33,244.22,34.85522795]
[1732194567540,23.20652795,244.37,244.26,23.20652795]
[1732194567756,23.20652795,244.37,244.27,20.0]
[1732194568135,23.20652795,244.37,244.29,20.0]
[1732194568541,23.20652795,244.35,244.29,20.0]
[1732194568735,23.20652795,244.38,244.29,20.0]
[1732194569245,23.20652795,244.34,244.31,20.0]
[1732194569455,23.20652795,244.32,244.3,10.2333]
[1732194569642,23.20652795,244.36,244.3,10.2333]
[1732194571043,23.20652795,244.34,244.3,10.2333]
[1732194571436,23.20652795,244.36,244.3,10.2333]
[1732194571640,23.20652795,244.38,244.32,4.0929]
[1732194571834,23.20652795,244.36,244.32,4.0929]
[1732194572234,23.20652795,244.36,244.32,14.3253]
[1732194572435,23.20652795,244.38,244.33,20.0]
[1732194572639,23.20652795,244.4,244.33,20.0]
[1732194573555,23.20652795,244.42,244.33,20.0]
[1732194573956,23.20652795,244.42,244.35,20.0]
[1732194574537,23.20652795,244.36,244.35,20.0]
[1732194574835,23.20652795,244.36,244.34,14.3242]
[1732194575638,23.20652795,244.38,244.29,43.20652795]
[1732194577043,23.20652795,244.38,244.3,14.3266]
[1732194577241,23.20652795,244.38,244.31,20.0]
[1732194578459,23.20652795,244.4,244.31,43.20652795]
[1732194578851,9.01402508,244.4,244.39,6.19452927]
[1732194579168,9.01402508,244.4,244.37,10.2301]
[1732194579169,23.20652795,244.4,244.37,10.2301]
[1732194579337,23.20652795,244.42,244.37,14.3222]
[1732194579759,23.20652795,244.42,244.38,20.0]
[1732194580945,23.20652795,244.44,244.39,14.3213]
[1732194581262,23.20652795,244.46,244.4,20.0]
[1732194582699,23.20652795,244.49,244.4,20.0]
[1732194583343,23.20652795,244.49,244.42,20.0]
[1732194583701,23.20652795,244.53,244.44,20.0]
[1732194583897,23.20652795,244.51,244.44,20.0]
[1732194584095,23.20652795,244.49,244.44,20.0]
[1732194584303,23.20652795,244.49,244.42,20.0]
[1732194585111,23.20652795,244.49,244.43,14.3189]
[1732194585323,4.0892,244.55,244.43,14.3189]
[1732194585324,23.20652795,244.45,244.43,14.3189]
[1732194586010,23.20652795,244.47,244.43,14.3189]
[1732194586210,23.20652795,244.49,244.43,14.3189]
[1732194586722,23.20652795,244.49,244.44,20.0]
[1732194587101,23.20652795,244.49,244.43,10.2278]
[1732194587314,23.20652795,244.47,244.43,10.2278]
[1732194587720,23.20652795,244.49,244.43,10.2278]
[1732194589123,23.20652795,244.56,244.43,10.2278]
[1732194589124,23.20652795,244.47,244.43,10.2278]
[1732194589324,23.20652795,244.45,244.43,10.2278]
[1732194590412,23.20652795,244.45,244.36,14.3231]
[1732194590608,23.20652795,244.41,244.36,14.3231]
[1732194590881,10.2232,244.55,244.36,14.3231]
[1732194590882,14.44888539,244.42,244.36,14.3231]
[1732194591420,14.44888539,244.44,244.36,14.3231]
[1732194591642,14.44888539,244.44,244.37,20.0]
[1732194592050,14.44888539,244.42,244.38,14.3218]
[1732194592531,14.44888539,244.44,244.38,14.3218]
[1732194592724,23.11560864,244.44,244.38,14.3218]
[1732194592926,23.11560864,244.46,244.39,20.0]
[1732194593107,23.11560864,244.48,244.39,20.0]
[1732194593335,23.11560864,244.5,244.41,43.11560864]
[1732194594028,23.11560864,244.5,244.44,14.3183]
[1732194594239,49.45533452,244.63,244.44,14.3183]
[1732194594240,23.11560864,244.52,244.45,20.0]
[1732194594548,23.11560864,244.52,244.44,14.3183]
[1732194595230,5.05902612,244.62,244.44,14.3183]
[1732194595231,23.11560864,244.5,244.44,14.3183]
[1732194596226,23.11560864,244.5,244.44,10.2274]
[1732194596422,23.11560864,244.52,244.44,10.2274]
[1732194596912,23.11560864,244.5,244.44,10.2274]
[1732194597307,23.11560864,244.52,244.44,10.2274]
[1732194597509,23.11560864,244.52,244.44,14.3183]
[1732194598219,4.0889,244.57,244.44,14.3183]
[1732194598537,23.11560864,244.48,244.44,14.3183]
[1732194598737,23.11560864,244.46,244.38,30.6895]
[1732194598906,23.11560864,244.41,244.38,10.2296]
[1732194599230,4.0897,244.52,244.38,10.2296]
[1732194599231,23.11560864,244.39,244.38,10.2296]
[1732194599934,23.11560864,244.43,244.38,14.3215]
[1732194600122,23.11560864,244.45,244.38,14.3215]
[1732194600316,23.11560864,244.43,244.38,14.3215]
[1732194600523,23.11560864,244.45,244.38,14.3215]
[1732194600832,23.11560864,244.41,244.38,14.3215]
[1732194601704,23.11560864,244.43,244.38,14.3215]
[1732194602230,23.11560864,244.45,244.38,14.3215]
[1732194602722,4.0893,244.54,244.39,20.0]
[1732194602723,23.11560864,244.47,244.39,20.0]
[1732194603331,23.11560864,244.45,244.39,20.0]
[1732194603627,23.11560864,244.45,244.38,10.2296]
[1732194603628,23.11560864,244.43,244.38,10.2296]
[1732194603819,23.11560864,244.39,244.22,12.6623]
[1732194603997,23.61560864,244.44,244.25,23.11560864]
[1732194603998,23.11560864,244.34,244.25,23.11560864]
[1732194604191,31.8304,244.43,244.29,23.11560864]
[1732194604192,23.11560864,244.38,244.29,23.11560864]
[1732194604684,23.11560864,244.38,244.3,14.3266]
[1732194604881,23.11560864,244.36,244.3,14.3266]
[1732194605404,23.11560864,244.34,244.3,14.3266]
[1732194605582,23.11560864,244.34,244.3,10.2333]
[1732194605904,23.11560864,244.36,244.3,10.2333]
[1732194606201,23.11560864,244.34,244.3,10.2333]
[1732194606712,4.0915,244.41,244.3,10.2333]
[1732194606713,23.11560864,244.32,244.3,10.2333]
[1732194607283,23.11560864,244.32,244.26,20.4697]
[1732194607701,23.11560864,244.32,244.24,14.3301]
[1732194607884,23.11560864,244.3,244.24,14.3301]
[1732194608291,23.11560864,244.28,244.24,14.3301]
[1732194608605,23.11560864,244.26,244.24,14.3301]
[1732194609116,23.11560864,244.26,244.24,10.2358]
[1732194609286,23.11560864,244.26,244.17,12.4567]
[1732194609604,23.11560864,244.24,244.18,14.3336]
[1732194609800,23.11560864,244.22,244.18,14.3336]
[1732194611093,23.11560864,244.22,244.18,10.2383]
[1732194612291,23.11560864,244.2,244.12,14.3371]
[1732194612604,23.11560864,244.13,244.12,14.3371]
[1732194613213,23.11560864,244.13,244.07,14.3399]
[1732194613381,23.11560864,244.11,244.07,14.3399]
[1732194613782,23.11560864,244.09,243.99,13.1322]
[1732194613993,0.5,244.18,243.99,13.1322]
[1732194613994,23.11560864,244.05,244.02,10.2449]
[1732194615307,20.0,244.18,244.02,10.2449]
[1732194615308,23.11560864,244.07,244.02,10.2449]
[1732194615692,23.11560864,244.05,244.02,10.2449]
[1732194616400,23.11560864,244.09,244.02,10.2449]
[1732194616711,23.11560864,244.13,244.04,23.11560864]
[1732194616918,0.5,244.14,243.97,31.9083]
[1732194616919,23.11560864,244.05,243.97,10.247]
[1732194617098,23.11560864,244.01,243.97,10.247]
[1732194618402,23.61560864,244.08,243.97,10.247]
[1732194618403,23.11560864,243.99,243.97,10.247]
[1732194619496,23.11560864,243.99,243.9,30.2883]
[1732194619497,23.11560864,243.99,243.91,14.3494]
[1732194619715,23.11560864,243.96,243.91,14.3494]
[1732194620193,23.11560864,243.92,243.85,10.2518]
[1732194620395,23.11560864,243.88,243.85,10.2518]
[1732194620804,23.11560864,243.88,243.79,35.58360864]
[1732194621590,23.11560864,243.88,243.8,20.0]
[1732194622121,23.11560864,243.92,243.82,20.0]
[1732194622294,23.11560864,243.92,243.83,23.11560864]
[1732194622614,23.11560864,243.92,243.84,20.0]
[1732194623120,23.11560864,243.9,243.81,20.0]
[1732194623300,23.11560864,243.86,243.8,14.356]
[1732194624814,23.11560864,243.88,243.8,57.98020864]
[1732194625018,23.11560864,243.92,243.82,23.11560864]
[1732194625217,23.11560864,243.94,243.84,23.11560864]
[1732194625595,23.11560864,243.94,243.85,14.353]
[1732194626514,23.11560864,243.92,243.85,14.353]
[1732194626913,23.11560864,243.92,243.85,10.2522]
[1732194628902,23.11560864,243.9,243.85,10.2522]
[1732194629413,4.0987,243.98,243.85,10.2522]
[1732194629414,23.11560864,243.92,243.85,33.36780864]
[1732194629614,23.11560864,243.96,243.87,23.11560864]
[1732194629815,50.1079,244.08,243.9,18.61560864]
[1732194630022,23.11560864,244.01,243.92,23.11560864]
[1732194630429,23.11560864,244.03,243.94,23.11560864]
[1732194631095,23.11560864,244.05,243.94,23.11560864]
[1732194631295,23.11560864,244.07,243.98,23.11560864]
[1732194631525,23.11560864,244.11,244.02,23.11560864]
[1732194631696,23.11560864,244.21,244.09,23.11560864]
[1732194631903,23.11560864,244.21,244.12,23.11560864]
[1732194632121,23.11560864,244.14,244.09,20.0]
[1732194632314,23.11560864,244.2,244.04,20.0]
[1732194632315,0.5,244.19,244.04,20.0]
[1732194632503,23.11560864,244.09,244.04,20.0]
[1732194632705,0.5,244.15,244.0,43.11560864]
[1732194632910,0.5,244.15,243.93,34.8459]
[1732194632911,5.1001466,244.3,244.16,20.5]
[1732194633148,5.1001466,244.3,244.19,23.776884]
[1732194633297,23.11560864,244.31,244.22,23.11560864]
[1732194633500,23.11560864,244.33,244.23,14.3307]
[1732194633696,23.11560864,244.33,244.24,23.11560864]
[1732194634520,23.11560864,244.33,244.23,14.3307]
[1732194634701,23.11560864,244.31,244.27,0.02]
[1732194635021,23.11560864,244.31,244.28,4.70219206]
[1732194635022,0.5,244.3,244.28,4.70219206]
[1732194635225,23.776884,244.31,244.16,10.2388]
[1732194635226,0.5,244.28,244.21,0.02]
[1732194635398,23.11560864,244.22,244.2,0.02]
[1732194635599,23.11560864,244.22,244.21,2.0450245]
[1732194635797,23.11560864,244.22,244.1,10.2415]
[1732194635996,23.11560864,244.15,244.1,10.2415]
[1732194636219,23.776884,244.21,244.1,10.2415]
[1732194636220,23.11560864,244.17,244.1,10.2415]
[1732194637041,23.11560864,244.21,244.11,23.11560864]
[1732194637336,23.11560864,244.2,244.11,43.11560864]
[1732194637509,0.5,244.28,244.1,10.2415]
[1732194637510,23.11560864,244.17,244.1,10.2415]
[1732194637822,23.11560864,244.15,244.1,14.3381]
[1732194638128,23.11560864,244.21,244.11,23.11560864]
[1732194638319,23.11560864,244.21,244.13,23.11560864]
[1732194639217,23.11560864,244.21,244.12,14.3371]
[1732194641026,23.11560864,244.19,244.12,14.3371]
[1732194641228,23.11560864,244.17,244.12,14.3371]
[1732194641729,23.11560864,244.13,244.06,14.3404]
[1732194642236,23.11560864,244.11,244.06,14.3404]
[1732194642727,23.11560864,244.11,244.06,10.2431]
[1732194643107,23.11560864,244.16,244.07,23.11560864]
[1732194643915,23.11560864,244.16,244.09,23.11560864]
[1732194644114,23.11560864,244.16,244.07,20.0]
[1732194644310,0.5,244.25,244.07,20.0]
[1732194644311,23.11560864,244.2,244.11,23.11560864]
[1732194644917,0.47112612,244.28,244.13,23.11560864]
[1732194644918,23.11560864,244.22,244.13,23.11560864]
[1732194645136,23.11560864,244.22,244.1,34.8217]
[1732194645137,23.11560864,244.16,244.1,14.3383]
[1732194645309,23.11560864,244.14,244.1,10.2417]
[1732194646006,23.11560864,244.12,244.1,10.2417]
[1732194646324,23.11560864,244.14,244.05,14.3413]
[1732194646934,23.11560864,244.12,244.05,14.3413]
[1732194647224,23.11560864,244.06,244.0,10.2458]
[1732194647615,23.11560864,244.06,244.01,10.2454]
[1732194649024,23.11560864,244.1,244.01,33.36100864]
[1732194649338,23.11560864,244.12,244.03,23.11560864]
[1732194649514,23.11560864,244.14,244.03,23.11560864]
[1732194649825,23.11560864,244.14,244.05,23.11560864]
[1732194650436,23.11560864,244.14,244.06,14.3406]
[1732194651029,44.1635,244.28,244.11,23.11560864]
[1732194651221,23.11560864,244.22,244.13,23.11560864]
[1732194652111,23.11560864,244.24,244.15,23.11560864]
[1732194652312,23.11560864,244.27,244.19,23.11560864]
[1732194652516,23.11560864,244.33,244.25,23.11560864]
[1732194652712,23.11560864,244.35,244.25,23.11560864]
[1732194652932,23.11560864,244.35,244.27,23.11560864]
[1732194653129,23.11560864,244.37,244.27,23.11560864]
[1732194654032,23.11560864,244.37,244.28,14.3277]
[1732194654737,4.0918,244.39,244.23,20.0]
[1732194654738,37.59063341,244.3,244.23,20.0]
[1732194655033,37.59063341,244.28,244.24,4.0942]
[1732194655235,37.59063341,244.26,244.23,10.2361]
[1732194655424,37.59063341,244.26,244.18,10.2382]
[1732194655734,37.59063341,244.25,244.18,10.2382]
[1732194657340,37.59063341,244.23,244.18,10.2382]
[1732194659742,37.59063341,244.25,244.18,10.2382]
[1732194660835,23.776884,244.31,244.22,37.59063341]
[1732194660836,37.59063341,244.31,244.22,37.59063341]
[1732194661137,69.44455953,244.44,244.22,37.59063341]
[1732194661138,37.59063341,244.33,244.22,37.59063341]
[1732194661341,37.59063341,244.31,244.22,37.59063341]
[1732194661515,37.59063341,244.29,244.21,20.0]
[1732194662137,37.59063341,244.31,244.22,37.59063341]
[1732194662343,37.59063341,244.33,244.24,37.59063341]
[1732194662515,37.59063341,244.31,244.23,20.0]
[1732194662909,84.3305254,244.44,244.24,51.92073341]
[1732194662910,37.59063341,244.33,244.24,51.92073341]
[1732194663128,4.0919,244.39,244.24,51.92073341]
[1732194663325,4.0914,244.41,244.28,37.59063341]
[1732194663548,37.59063341,244.37,244.28,37.59063341]
[1732194664228,0.47112612,244.49,244.3,37.59063341]
[1732194664229,37.59063341,244.41,244.3,37.59063341]
[1732194664418,37.59063341,244.41,244.32,37.59063341]
[1732194665139,37.59063341,244.41,244.25,12.0033]
[1732194665140,37.59063341,244.41,244.33,14.3248]
[1732194665636,37.59063341,244.4,244.33,14.3248]
[1732194666517,37.59063341,244.38,244.33,14.3248]
[1732194666818,37.59063341,244.4,244.33,10.232]
[1732194667833,37.59063341,244.46,244.38,37.59063341]
[1732194668020,37.59063341,244.48,244.38,37.59063341]
[1732194668346,37.59063341,244.48,244.33,10.232]
[1732194668347,37.59063341,244.5,244.4,37.59063341]
[1732194668529,37.59063341,244.5,244.4,49.88293341]
[1732194668837,37.59063341,244.5,244.41,14.3201]
[1732194669615,37.59063341,244.47,244.41,14.3201]
[1732194669816,37.59063341,244.45,244.41,14.3201]
[1732194670264,37.59063341,244.43,244.41,10.2287]
[1732194670544,37.59063341,244.45,244.41,10.2287]
[1732194670724,23.776884,244.41,244.25,14.3295]
[1732194670932,37.59063341,244.35,244.25,51.92013341]
[1732194671127,37.59063341,244.35,244.27,37.59063341]
[1732194671334,23.776884,244.39,244.25,14.3295]
[1732194671335,37.59063341,244.39,244.31,37.59063341]
[1732194671540,37.59063341,244.42,244.31,37.59063341]
[1732194671934,37.59063341,244.42,244.33,37.59063341]
[1732194673231,37.59063341,244.42,244.34,34.3242]
[1732194673844,5.12195554,244.52,244.35,37.59063341]
[1732194673845,37.59063341,244.44,244.35,37.59063341]
[1732194674025,37.59063341,244.46,244.37,49.62403341]
[1732194674440,37.59063341,244.48,244.39,37.59063341]
[1732194674645,37.59063341,244.56,244.37,12.0334]
[1732194674646,37.59063341,244.5,244.41,37.59063341]
[1732194674944,37.59063341,244.5,244.37,12.0334]
[1732194674945,37.59063341,244.48,244.39,37.59063341]
[1732194675349,37.59063341,244.5,244.41,37.59063341]
[1732194675522,37.59063341,244.52,244.41,37.59063341]
[1732194675946,37.59063341,244.5,244.41,37.59063341]
[1732194676150,23.776884,244.54,244.41,37.59063341]
[1732194676445,37.59063341,244.51,244.42,14.3195]
[1732194676626,23.10464495,244.5,244.42,14.3195]
[1732194678834,23.10464495,244.44,244.32,5.13320955]
[1732194679139,23.10464495,244.44,244.33,4.0928]
[1732194679140,23.10464495,244.38,244.33,4.0928]
[1732194679528,23.10464495,244.44,244.33,4.0928]
[1732194679529,23.10464495,244.36,244.33,4.0928]
[1732194680026,23.10464495,244.34,244.33,4.0928]
[1732194680347,23.10464495,244.34,244.32,10.2321]
[1732194680643,23.10464495,244.34,244.3,12.6109]
[1732194680824,23.10464495,244.31,244.29,4.0934]
[1732194681531,23.10464495,244.33,244.29,4.0934]
[1732194681735,23.10464495,244.35,244.29,14.3271]
[1732194682450,23.10464495,244.33,244.29,14.3271]
[1732194683146,23.10464495,244.33,244.29,10.2337]
[1732194683347,5.63072128,244.43,244.24,23.0567]
[1732194683348,23.10464495,244.31,244.24,23.0567]
[1732194683563,23.10464495,244.26,244.21,4.0947]
[1732194683724,23.10464495,244.24,244.22,0.93592428]
[1732194685253,23.10464495,244.32,244.22,38.37166923]
[1732194685844,23.10464495,244.32,244.23,20.0]
[1732194686051,23.10464495,244.36,244.26,23.10464495]
[1732194686424,23.10464495,244.36,244.27,14.3283]
[1732194686953,23.10464495,244.38,244.28,23.10464495]
[1732194687130,23.10464495,244.36,244.27,14.3283]
[1732194687534,23.10464495,244.32,244.27,14.3283]
[1732194688043,23.10464495,244.34,244.27,14.3283]
[1732194688643,37.59404352,244.33,244.27,14.3283]
[1732194688841,37.59404352,244.35,244.27,14.3283]
[1732194689136,37.59404352,244.33,244.28,20.0]
[1732194689350,4.0913,244.42,244.27,14.3283]
[1732194689351,37.59404352,244.35,244.27,14.3283]
[1732194689938,37.59404352,244.35,244.27,10.2345]
[1732194691261,37.59404352,244.37,244.27,10.2345]
[1732194691756,37.59404352,244.35,244.27,10.2345]
[1732194692254,37.59404352,244.35,244.27,14.3283]
[1732194692459,37.59404352,244.35,244.28,20.0]
[1732194692644,37.59404352,244.37,244.28,57.59404352]
[1732194693050,37.59404352,244.39,244.28,57.59404352]
[1732194693349,37.59404352,244.37,244.28,20.0]
[1732194693531,37.59404352,244.33,244.29,14.3271]
[1732194694156,47.82154352,244.44,244.29,14.3271]
[1732194694157,37.59404352,244.35,244.29,14.3271]
[1732194694549,37.59404352,244.37,244.3,12.0997]
[1732194694754,24.0911,244.43,244.3,49.69374352]
[1732194694755,37.59404352,244.39,244.3,49.69374352]
[1732194695051,37.59404352,244.39,244.31,20.0]
[1732194695348,37.59404352,244.45,244.36,37.59404352]
[1732194695736,37.59404352,244.45,244.37,14.3224]
[1732194696549,37.59404352,244.43,244.37,14.3224]
[1732194697854,37.59404352,244.43,244.37,10.2303]
[1732194698058,37.59404352,244.41,244.32,37.59404352]
[1732194698267,37.59404352,244.41,244.3,12.0997]
[1732194698268,37.59404352,244.39,244.34,4.0925]
[1732194698437,37.59404352,244.37,244.34,4.0925]
[1732194698955,37.59404352,244.39,244.3,12.0997]
[1732194699134,37.59404352,244.39,244.33,10.232]
[1732194699950,4.0909,244.45,244.33,10.232]
[1732194700154,37.59404352,244.41,244.33,10.232]
[1732194700338,37.59404352,244.43,244.33,10.232]
[1732194700540,37.59404352,244.43,244.34,20.0]
[1732194700949,37.59404352,244.41,244.34,20.0]
[1732194701665,37.59404352,244.43,244.36,20.0]
[1732194701844,37.59404352,244.41,244.35,14.3236]
[1732194702044,37.59404352,244.39,244.35,14.3236]
[1732194702242,23.776884,244.5,244.35,14.3236]
[1732194702443,14.313,244.53,244.36,20.0]
[1732194702444,37.59404352,244.44,244.36,20.0]
[1732194703440,37.59404352,244.44,244.37,14.3224]
[1732194705048,37.59404352,244.42,244.37,14.3224]
[1732194706350,37.59404352,244.4,244.37,10.2303]
[1732194707261,37.59404352,244.38,244.32,10.2323]
[1732194707440,37.59404352,244.35,244.32,10.2323]
[1732194707757,37.59404352,244.35,244.3,12.0997]
[1732194707966,37.59404352,244.31,244.3,12.0997]
[1732194708162,37.59404352,244.35,244.3,16.1929]
[1732194708348,37.59404352,244.33,244.3,16.1929]
[1732194708751,4.0913,244.42,244.3,16.1929]
[1732194708752,23.13520477,244.34,244.3,16.1929]
[1732194709655,23.13520477,244.34,244.3,12.0997]
[1732194709855,23.13520477,244.32,244.24,12.6976]
[1732194710052,0.5,244.4,244.24,12.6976]
[1732194710053,23.13520477,244.29,244.24,12.6976]
[1732194710448,23.13520477,244.27,244.21,32.3083]
[1732194710765,23.13520477,244.27,244.21,36.403]
[1732194710953,23.13520477,244.27,244.21,46.64]
[1732194711346,23.13520477,244.29,244.21,46.64]
[1732194711547,23.13520477,244.31,244.22,23.13520477]
[1732194711752,23.13520477,244.33,244.24,23.13520477]
[1732194711961,23.13520477,244.33,244.22,23.13520477]
[1732194712270,23.13520477,244.33,244.24,23.13520477]
[1732194712570,23.13520477,244.35,244.26,23.13520477]
[1732194712754,23.13520477,244.35,244.24,23.13520477]